[Event "Late-Titled-Tuesday-Blitz-February-20-2024"]
[Site "Chess.com"]
[Date "2024.02.20"]
[Round "4"]
[White "a_kandil"]
[Black "larsmandreassen"]
[Result "1-0"]
[WhiteElo "2428"]
[BlackElo "2183"]
[TimeControl "180+1"]
[EndTime "14:39:19 PST"]
[Termination "a_kandil won on time"]

1. e4 {[%clk 0:03:00]} 1... d5 {[%clk 0:02:59.7]} 2. exd5 {[%clk 0:03:00.9]}
2... Nf6 {[%clk 0:03:00.1]} 3. Bb5+ {[%clk 0:02:59.6]} 3... Nbd7 {[%clk
0:02:59.6]} 4. Nc3 {[%clk 0:02:59.1]} 4... a6 {[%clk 0:02:59.9]} 5. Be2 {[%clk
0:02:59]} 5... b5 {[%clk 0:02:58.1]} 6. a3 {[%clk 0:02:57.5]} 6... Bb7 {[%clk
0:02:58.2]} 7. Nf3 {[%clk 0:02:58]} 7... Nxd5 {[%clk 0:02:57.7]} 8. Nxd5 {[%clk
0:02:57.8]} 8... Bxd5 {[%clk 0:02:57.6]} 9. d4 {[%clk 0:02:57.6]} 9... e6 {[%clk
0:02:57.6]} 10. O-O {[%clk 0:02:58.2]} 10... Be7 {[%clk 0:02:56]} 11. Bf4 {[%clk
0:02:57.4]} 11... O-O {[%clk 0:02:55.6]} 12. b3 {[%clk 0:02:53]} 12... c5 {[%clk
0:02:55]} 13. c4 {[%clk 0:02:53.1]} 13... bxc4 {[%clk 0:02:54.4]} 14. bxc4
{[%clk 0:02:54]} 14... Bc6 {[%clk 0:02:51.9]} 15. d5 {[%clk 0:02:54.2]} 15...
exd5 {[%clk 0:02:52.2]} 16. cxd5 {[%clk 0:02:55.1]} 16... Bb5 {[%clk 0:02:52.7]}
17. d6 {[%clk 0:02:36.7]} 17... Bf6 {[%clk 0:02:50.3]} 18. Rc1 {[%clk 0:02:37]}
18... Re8 {[%clk 0:02:46.1]} 19. Bd3 {[%clk 0:02:37]} 19... Qa5 {[%clk
0:02:28.7]} 20. Bxb5 {[%clk 0:02:10.3]} 20... axb5 {[%clk 0:02:27.1]} 21. Qd3
{[%clk 0:02:10.5]} 21... c4 {[%clk 0:02:23.2]} 22. Qf5 {[%clk 0:02:10.5]} 22...
Ra7 {[%clk 0:02:10.7]} 23. Be3 {[%clk 0:02:09.1]} 23... Rb7 {[%clk 0:02:06.8]}
24. Qd5 {[%clk 0:02:02.6]} 24... Reb8 {[%clk 0:01:54.7]} 25. Rxc4 {[%clk
0:01:49.3]} 25... Qxa3 {[%clk 0:01:44.6]} 26. Rc7 {[%clk 0:01:49]} 26... Qa6
{[%clk 0:01:26.2]} 27. Rfc1 {[%clk 0:01:48.7]} 27... g6 {[%clk 0:01:08.3]} 28.
h3 {[%clk 0:01:47]} 28... Kg7 {[%clk 0:01:04.9]} 29. R1c6 {[%clk 0:01:46.7]}
29... Qa1+ {[%clk 0:00:54.3]} 30. Rc1 {[%clk 0:01:40.1]} 30... Qa6 {[%clk
0:00:51.5]} 31. Rxb7 {[%clk 0:01:18.4]} 31... Qxb7 {[%clk 0:00:49.9]} 32. Qxb7
{[%clk 0:01:17]} 32... Rxb7 {[%clk 0:00:50.2]} 33. Rc7 {[%clk 0:01:17.6]} 33...
Rb8 {[%clk 0:00:32.4]} 34. Rxd7 {[%clk 0:01:17.4]} 34... b4 {[%clk 0:00:33.3]}
35. Ba7 {[%clk 0:01:01.7]} 35... Rb5 {[%clk 0:00:29.6]} 36. Bd4 {[%clk
0:00:52.3]} 36... b3 {[%clk 0:00:21.7]} 37. Bxf6+ {[%clk 0:00:32.9]} 37... Kxf6
{[%clk 0:00:22.6]} 38. Nd2 {[%clk 0:00:31.5]} 38... b2 {[%clk 0:00:21.2]} 39.
Kh2 {[%clk 0:00:17]} 39... b1=Q {[%clk 0:00:09.2]} 40. Nxb1 {[%clk 0:00:17]}
40... Rxb1 {[%clk 0:00:09.9]} 41. Kg3 {[%clk 0:00:14.5]} 41... Rd1 {[%clk
0:00:09.1]} 42. Kf4 {[%clk 0:00:13.7]} 42... Ke6 {[%clk 0:00:09.3]} 43. Re7+
{[%clk 0:00:13.8]} 43... Kf6 {[%clk 0:00:09]} 44. Rd7 {[%clk 0:00:13.1]} 44...
Ke6 {[%clk 0:00:09]} 45. Rd8 {[%clk 0:00:13.4]} 45... Rxd6 {[%clk 0:00:07.5]}
46. Rxd6+ {[%clk 0:00:13.3]} 46... Kxd6 {[%clk 0:00:08]} 47. Kg5 {[%clk
0:00:13.9]} 47... h5 {[%clk 0:00:04.9]} 48. Kf6 {[%clk 0:00:13.9]} 1-0

[Event "Late-Titled-Tuesday-Blitz-February-20-2024"]
[Site "Chess.com"]
[Date "2024.02.20"]
[Round "4"]
[White "Sanan_Sjugirov"]
[Black "Casper"]
[Result "1/2-1/2"]
[WhiteElo "2868"]
[BlackElo "2568"]
[TimeControl "180+1"]
[EndTime "14:39:22 PST"]
[Termination "Game drawn by repetition"]

1. d4 {[%clk 0:03:00.9]} 1... d5 {[%clk 0:02:58.7]} 2. Nf3 {[%clk 0:03:00.7]}
2... Nf6 {[%clk 0:02:58.2]} 3. Bf4 {[%clk 0:03:00.9]} 3... Nh5 {[%clk
0:02:57.6]} 4. Bg5 {[%clk 0:02:58.3]} 4... h6 {[%clk 0:02:57.1]} 5. Bh4 {[%clk
0:02:57.6]} 5... g5 {[%clk 0:02:57.8]} 6. Bg3 {[%clk 0:02:58.2]} 6... Bg7 {[%clk
0:02:57.7]} 7. e3 {[%clk 0:02:57.4]} 7... Nc6 {[%clk 0:02:54.7]} 8. Nbd2 {[%clk
0:02:56.2]} 8... O-O {[%clk 0:02:53.3]} 9. c3 {[%clk 0:02:47.2]} 9... Bf5 {[%clk
0:02:30.3]} 10. Be2 {[%clk 0:02:36.1]} 10... Nxg3 {[%clk 0:02:17.1]} 11. hxg3
{[%clk 0:02:35.4]} 11... Qd6 {[%clk 0:02:18]} 12. Nb3 {[%clk 0:02:18.5]} 12...
a5 {[%clk 0:02:13.8]} 13. Bd3 {[%clk 0:02:17]} 13... Bxd3 {[%clk 0:02:01.1]} 14.
Qxd3 {[%clk 0:02:17.9]} 14... a4 {[%clk 0:02:01.8]} 15. Nbd2 {[%clk 0:02:06.1]}
15... f5 {[%clk 0:02:02.3]} 16. a3 {[%clk 0:01:58.1]} 16... e5 {[%clk
0:01:56.2]} 17. dxe5 {[%clk 0:01:57.5]} 17... Nxe5 {[%clk 0:01:57.1]} 18. Nxe5
{[%clk 0:01:57.7]} 18... Qxe5 {[%clk 0:01:58]} 19. O-O {[%clk 0:01:55.4]} 19...
c6 {[%clk 0:01:52.3]} 20. Rad1 {[%clk 0:01:55.7]} 20... b5 {[%clk 0:01:43.1]}
21. Nf3 {[%clk 0:01:54.5]} 21... Qe4 {[%clk 0:01:42.7]} 22. Qd2 {[%clk
0:01:49.7]} 22... Rae8 {[%clk 0:01:33.5]} 23. Nd4 {[%clk 0:01:45.9]} 23... Bxd4
{[%clk 0:01:27.9]} 24. cxd4 {[%clk 0:01:45.5]} 24... Rf6 {[%clk 0:01:21.5]} 25.
Rc1 {[%clk 0:01:44.8]} 25... Ref8 {[%clk 0:01:07.2]} 26. Rc3 {[%clk 0:01:44]}
26... f4 {[%clk 0:00:55.4]} 27. exf4 {[%clk 0:01:42.6]} 27... gxf4 {[%clk
0:00:56.3]} 28. Re1 {[%clk 0:01:41.2]} 28... Qf5 {[%clk 0:00:55.3]} 29. gxf4
{[%clk 0:01:29.3]} 29... Qxf4 {[%clk 0:00:56.2]} 30. Rg3+ {[%clk 0:01:25]} 30...
Kh8 {[%clk 0:00:53.9]} 31. Qxf4 {[%clk 0:01:16.9]} 31... Rxf4 {[%clk 0:00:54.8]}
32. Re6 {[%clk 0:01:17.3]} 32... R8f6 {[%clk 0:00:46.3]} 33. Rg6 {[%clk
0:01:11.1]} 33... Rxg6 {[%clk 0:00:38.8]} 34. Rxg6 {[%clk 0:01:12]} 34... Rxd4
{[%clk 0:00:39.5]} 35. Rxh6+ {[%clk 0:01:12]} 35... Kg7 {[%clk 0:00:39.8]} 36.
Rxc6 {[%clk 0:01:12.9]} 36... Rd2 {[%clk 0:00:37.2]} 37. Rc5 {[%clk 0:01:12.1]}
37... Rxb2 {[%clk 0:00:23.4]} 38. Rxd5 {[%clk 0:01:12]} 38... b4 {[%clk
0:00:19.8]} 39. axb4 {[%clk 0:01:12.9]} 39... a3 {[%clk 0:00:20.4]} 40. Ra5
{[%clk 0:00:43.4]} 40... a2 {[%clk 0:00:21.3]} 41. Kh2 {[%clk 0:00:43.5]} 41...
Rxf2 {[%clk 0:00:21.8]} 42. b5 {[%clk 0:00:38]} 42... Rb2 {[%clk 0:00:21.2]} 43.
b6 {[%clk 0:00:38.4]} 43... Rxb6 {[%clk 0:00:21]} 44. Rxa2 {[%clk 0:00:39]}
44... Rh6+ {[%clk 0:00:19.4]} 45. Kg1 {[%clk 0:00:39.4]} 45... Rb6 {[%clk
0:00:19.1]} 46. g3 {[%clk 0:00:39.4]} 46... Kg6 {[%clk 0:00:18.9]} 47. Kg2
{[%clk 0:00:40]} 47... Kg5 {[%clk 0:00:19.2]} 48. Ra5+ {[%clk 0:00:39.3]} 48...
Kg4 {[%clk 0:00:19.1]} 49. Ra4+ {[%clk 0:00:40]} 49... Kg5 {[%clk 0:00:19.8]}
50. Rd4 {[%clk 0:00:39.9]} 50... Ra6 {[%clk 0:00:18.9]} 51. Kf3 {[%clk
0:00:37.6]} 51... Ra3+ {[%clk 0:00:17.9]} 52. Kg2 {[%clk 0:00:37.3]} 52... Ra6
{[%clk 0:00:18.6]} 53. Rh4 {[%clk 0:00:36]} 53... Ra1 {[%clk 0:00:17.4]} 54. Rh8
{[%clk 0:00:35.8]} 54... Rb1 {[%clk 0:00:17.4]} 55. Rg8+ {[%clk 0:00:35.2]}
55... Kf5 {[%clk 0:00:17.9]} 56. Rf8+ {[%clk 0:00:33.3]} 56... Kg4 {[%clk
0:00:16.8]} 57. Rf4+ {[%clk 0:00:33.2]} 57... Kg5 {[%clk 0:00:17.3]} 58. Rf2
{[%clk 0:00:34]} 58... Ra1 {[%clk 0:00:15.9]} 59. Rd2 {[%clk 0:00:33.4]} 59...
Rb1 {[%clk 0:00:15.9]} 60. Rd3 {[%clk 0:00:32.9]} 60... Ra1 {[%clk 0:00:15.6]}
61. Rd5+ {[%clk 0:00:29.9]} 61... Kg4 {[%clk 0:00:15.6]} 62. Rd4+ {[%clk
0:00:30.8]} 62... Kg5 {[%clk 0:00:16.1]} 63. Kf3 {[%clk 0:00:31.7]} 63... Rf1+
{[%clk 0:00:15.5]} 64. Ke3 {[%clk 0:00:32.1]} 64... Re1+ {[%clk 0:00:15.6]} 65.
Kf2 {[%clk 0:00:32.2]} 65... Ra1 {[%clk 0:00:15.9]} 66. g4 {[%clk 0:00:32.4]}
66... Ra3 {[%clk 0:00:13.8]} 67. Kg2 {[%clk 0:00:32.1]} 67... Rb3 {[%clk
0:00:14.1]} 68. Re4 {[%clk 0:00:32.4]} 68... Ra3 {[%clk 0:00:14.5]} 69. Rd4
{[%clk 0:00:33]} 69... Rb3 {[%clk 0:00:15]} 70. Re4 {[%clk 0:00:33.6]} 70... Ra3
{[%clk 0:00:15.5]} 71. Rd4 {[%clk 0:00:34.3]} 1/2-1/2

[Event "Late-Titled-Tuesday-Blitz-February-20-2024"]
[Site "Chess.com"]
[Date "2024.02.20"]
[Round "4"]
[White "SocoLoco"]
[Black "ArchibaldCerveza29"]
[Result "1-0"]
[WhiteElo "2205"]
[BlackElo "2441"]
[TimeControl "180+1"]
[EndTime "14:39:25 PST"]
[Termination "SocoLoco won by checkmate"]

1. e4 {[%clk 0:03:00.9]} 1... e5 {[%clk 0:02:59.2]} 2. d4 {[%clk 0:03:00.4]}
2... d6 {[%clk 0:02:52.6]} 3. dxe5 {[%clk 0:02:58.1]} 3... dxe5 {[%clk
0:02:53.5]} 4. Qxd8+ {[%clk 0:02:56.9]} 4... Kxd8 {[%clk 0:02:54.4]} 5. f4
{[%clk 0:02:56.6]} 5... Nc6 {[%clk 0:02:51.9]} 6. fxe5 {[%clk 0:02:56]} 6...
Nxe5 {[%clk 0:02:52.8]} 7. Nf3 {[%clk 0:02:55.6]} 7... Bd6 {[%clk 0:02:48.6]} 8.
Nc3 {[%clk 0:02:52.3]} 8... Bg4 {[%clk 0:02:40]} 9. Be2 {[%clk 0:02:51.5]} 9...
Ne7 {[%clk 0:02:30.2]} 10. Nxe5 {[%clk 0:02:45.7]} 10... Bxe2 {[%clk 0:02:17.4]}
11. Nxf7+ {[%clk 0:02:41.4]} 11... Kd7 {[%clk 0:02:17.4]} 12. Nxd6 {[%clk
0:02:21.2]} 12... Ba6 {[%clk 0:02:10.2]} 13. Ndb5 {[%clk 0:02:12.4]} 13... c6
{[%clk 0:02:05.1]} 14. Nd4 {[%clk 0:02:10.1]} 14... Rhf8 {[%clk 0:01:55.6]} 15.
Be3 {[%clk 0:02:05.7]} 15... c5 {[%clk 0:00:59.9]} 16. Ndb5 {[%clk 0:01:35.3]}
16... Kc6 {[%clk 0:00:57.1]} 17. a4 {[%clk 0:01:32.9]} 17... Rfd8 {[%clk
0:00:36.1]} 18. Rf1 {[%clk 0:01:27.1]} 18... Ng6 {[%clk 0:00:34.6]} 19. Rf7
{[%clk 0:01:21.9]} 19... Rd7 {[%clk 0:00:29]} 20. Rd1 {[%clk 0:00:48.2]} 20...
Rad8 {[%clk 0:00:11.3]} 21. Rdxd7 {[%clk 0:00:42.5]} 21... Rxd7 {[%clk
0:00:12.2]} 22. Rxd7 {[%clk 0:00:42.3]} 22... Kxd7 {[%clk 0:00:12.8]} 23. Kf2
{[%clk 0:00:40.8]} 23... Bxb5 {[%clk 0:00:11.4]} 24. Nxb5 {[%clk 0:00:39.4]}
24... a6 {[%clk 0:00:11.7]} 25. Nc3 {[%clk 0:00:39.3]} 25... Kd6 {[%clk
0:00:11]} 26. Nd5 {[%clk 0:00:37.5]} 26... Ne5 {[%clk 0:00:10.3]} 27. b3 {[%clk
0:00:34]} 27... Ng4+ {[%clk 0:00:09.8]} 28. Kf3 {[%clk 0:00:33.5]} 28... Nxh2+
{[%clk 0:00:09.9]} 29. Ke2 {[%clk 0:00:30.8]} 29... Ng4 {[%clk 0:00:09.6]} 30.
Bf4+ {[%clk 0:00:30.9]} 30... Kc6 {[%clk 0:00:08.8]} 31. Kf3 {[%clk 0:00:31.8]}
31... Nf6 {[%clk 0:00:05.1]} 32. Nxf6 {[%clk 0:00:27.9]} 32... gxf6 {[%clk
0:00:06]} 33. Kg4 {[%clk 0:00:26.7]} 33... Kd7 {[%clk 0:00:06.7]} 34. Kf5 {[%clk
0:00:26.6]} 34... Ke7 {[%clk 0:00:07.4]} 35. Bc7 {[%clk 0:00:26.1]} 35... b5
{[%clk 0:00:05.5]} 36. axb5 {[%clk 0:00:25.3]} 36... axb5 {[%clk 0:00:06.4]} 37.
Bb6 {[%clk 0:00:25.4]} 37... c4 {[%clk 0:00:06.6]} 38. Bc5+ {[%clk 0:00:24.6]}
38... Kf7 {[%clk 0:00:05]} 39. Bd4 {[%clk 0:00:25.1]} 39... cxb3 {[%clk
0:00:04.7]} 40. cxb3 {[%clk 0:00:26]} 40... h6 {[%clk 0:00:04.4]} 41. Bxf6
{[%clk 0:00:25.9]} 41... h5 {[%clk 0:00:05.1]} 42. e5 {[%clk 0:00:25.5]} 42...
b4 {[%clk 0:00:03.2]} 43. e6+ {[%clk 0:00:25.3]} 43... Ke8 {[%clk 0:00:04]} 44.
Kg6 {[%clk 0:00:24]} 44... h4 {[%clk 0:00:03.7]} 45. Bxh4 {[%clk 0:00:24]} 45...
Kf8 {[%clk 0:00:03.7]} 46. Kf5 {[%clk 0:00:22.2]} 46... Ke8 {[%clk 0:00:04.1]}
47. Ke5 {[%clk 0:00:22.4]} 47... Kf8 {[%clk 0:00:04.1]} 48. Kd5 {[%clk
0:00:22.4]} 48... Ke8 {[%clk 0:00:05]} 49. Kc4 {[%clk 0:00:22.6]} 49... Kf8
{[%clk 0:00:05.9]} 50. Kxb4 {[%clk 0:00:22.9]} 50... Ke8 {[%clk 0:00:06.8]} 51.
Kc5 {[%clk 0:00:23.3]} 51... Kf8 {[%clk 0:00:07.4]} 52. Kd6 {[%clk 0:00:23.5]}
52... Ke8 {[%clk 0:00:08.1]} 53. b4 {[%clk 0:00:23.9]} 53... Kf8 {[%clk
0:00:08.6]} 54. b5 {[%clk 0:00:24.8]} 54... Ke8 {[%clk 0:00:09.1]} 55. b6 {[%clk
0:00:25.6]} 55... Kf8 {[%clk 0:00:09.9]} 56. b7 {[%clk 0:00:26.1]} 56... Kg7
{[%clk 0:00:10.6]} 57. b8=Q {[%clk 0:00:25.3]} 57... Kg6 {[%clk 0:00:11.5]} 58.
e7 {[%clk 0:00:24.8]} 58... Kh5 {[%clk 0:00:11.8]} 59. Qh8+ {[%clk 0:00:24.3]}
59... Kg4 {[%clk 0:00:11.8]} 60. Bf6 {[%clk 0:00:23.6]} 60... Kf5 {[%clk
0:00:12]} 61. e8=Q {[%clk 0:00:23]} 61... Kg4 {[%clk 0:00:11.7]} 62. Qh4+ {[%clk
0:00:21.8]} 62... Kf5 {[%clk 0:00:11.7]} 63. Qe5+ {[%clk 0:00:21.2]} 63... Kg6
{[%clk 0:00:11.5]} 64. Qhg5+ {[%clk 0:00:20.9]} 64... Kf7 {[%clk 0:00:10.8]} 65.
Qe7# {[%clk 0:00:20.8]} 1-0

[Event "Late-Titled-Tuesday-Blitz-February-20-2024"]
[Site "Chess.com"]
[Date "2024.02.20"]
[Round "4"]
[White "Charodej1"]
[Black "IsaqueGoncalvesSanto"]
[Result "1-0"]
[WhiteElo "2229"]
[BlackElo "1785"]
[TimeControl "180+1"]
[EndTime "14:39:26 PST"]
[Termination "Charodej1 won on time"]

1. e4 {[%clk 0:03:00.9]} 1... e6 {[%clk 0:02:59.7]} 2. d4 {[%clk 0:02:59.2]}
2... d5 {[%clk 0:02:59.7]} 3. e5 {[%clk 0:02:59]} 3... c5 {[%clk 0:02:58.8]} 4.
c3 {[%clk 0:02:58.4]} 4... Nc6 {[%clk 0:02:58.6]} 5. Nf3 {[%clk 0:02:58]} 5...
Qb6 {[%clk 0:02:57.3]} 6. Be2 {[%clk 0:02:56.2]} 6... Bd7 {[%clk 0:02:56.5]} 7.
dxc5 {[%clk 0:02:53.5]} 7... Bxc5 {[%clk 0:02:55.5]} 8. O-O {[%clk 0:02:53.5]}
8... a5 {[%clk 0:02:54.9]} 9. Nbd2 {[%clk 0:02:52.8]} 9... Qc7 {[%clk
0:02:48.8]} 10. Nb3 {[%clk 0:02:52.2]} 10... Ba7 {[%clk 0:02:47.4]} 11. Bf4
{[%clk 0:02:51.4]} 11... Nge7 {[%clk 0:02:46.4]} 12. Bb5 {[%clk 0:02:24.7]}
12... Ng6 {[%clk 0:02:28.9]} 13. Bg3 {[%clk 0:02:21]} 13... O-O {[%clk
0:02:08.8]} 14. Qe2 {[%clk 0:02:20]} 14... Nce7 {[%clk 0:01:59.2]} 15. Bd3
{[%clk 0:02:10]} 15... Qb6 {[%clk 0:01:11.5]} 16. Nbd4 {[%clk 0:02:05.5]} 16...
f5 {[%clk 0:01:08.3]} 17. exf6 {[%clk 0:02:04.6]} 17... Rxf6 {[%clk 0:01:07.8]}
18. Ne5 {[%clk 0:02:02.9]} 18... Be8 {[%clk 0:00:52.9]} 19. Rae1 {[%clk
0:01:59.8]} 19... Bf7 {[%clk 0:00:37.5]} 20. Kh1 {[%clk 0:01:54.9]} 20... Rf8
{[%clk 0:00:36.4]} 21. Nd7 {[%clk 0:01:54]} 21... Qd8 {[%clk 0:00:31.8]} 22.
Nxf6+ {[%clk 0:01:53.8]} 22... gxf6 {[%clk 0:00:31.6]} 23. Nxe6 {[%clk
0:01:53.9]} 23... Bxe6 {[%clk 0:00:30.2]} 24. Qxe6+ {[%clk 0:01:54.8]} 24... Kg7
{[%clk 0:00:30.4]} 25. Bd6 {[%clk 0:01:51.2]} 25... Rf7 {[%clk 0:00:27.6]} 26.
Ba3 {[%clk 0:01:39.4]} 26... Bb8 {[%clk 0:00:25]} 27. Qg4 {[%clk 0:01:36.8]}
27... Qc7 {[%clk 0:00:24.5]} 28. g3 {[%clk 0:01:18.4]} 28... f5 {[%clk
0:00:20.9]} 29. Qd4+ {[%clk 0:00:44.5]} 29... Kg8 {[%clk 0:00:19.3]} 30. f4
{[%clk 0:00:42.9]} 30... h5 {[%clk 0:00:15.6]} 31. Re6 {[%clk 0:00:40.2]} 31...
h4 {[%clk 0:00:14.4]} 32. Rfe1 {[%clk 0:00:35.8]} 32... hxg3 {[%clk 0:00:13.8]}
33. hxg3 {[%clk 0:00:36.7]} 33... Rh7+ {[%clk 0:00:13.2]} 34. Kg2 {[%clk
0:00:37.4]} 34... b5 {[%clk 0:00:09.9]} 35. Bxe7 {[%clk 0:00:35.5]} 35... Nxe7
{[%clk 0:00:09.4]} 36. Bxb5 {[%clk 0:00:32.6]} 36... Ba7 {[%clk 0:00:09]} 37.
Qd2 {[%clk 0:00:23]} 37... d4 {[%clk 0:00:08.8]} 38. Be2 {[%clk 0:00:16]} 38...
Qd7 {[%clk 0:00:05.8]} 39. Bf3 {[%clk 0:00:15.7]} 39... Nd5 {[%clk 0:00:04.5]}
40. Re8+ {[%clk 0:00:15.5]} 40... Kf7 {[%clk 0:00:02.9]} 41. Qxd4 {[%clk
0:00:14]} 41... Nxf4+ {[%clk 0:00:02.4]} 42. Qxf4 {[%clk 0:00:13.9]} 42... Qxe8
{[%clk 0:00:02]} 43. Rxe8 {[%clk 0:00:13.9]} 43... Kxe8 {[%clk 0:00:02.6]} 44.
Qxf5 {[%clk 0:00:14.2]} 44... Re7 {[%clk 0:00:02.9]} 45. Qc8+ {[%clk 0:00:13.6]}
45... Kf7 {[%clk 0:00:02.9]} 46. Bd5+ {[%clk 0:00:14.4]} 46... Kf6 {[%clk
0:00:03]} 47. Qc6+ {[%clk 0:00:14.8]} 47... Kg7 {[%clk 0:00:02.6]} 48. Bf3
{[%clk 0:00:15.1]} 48... Be3 {[%clk 0:00:02.5]} 49. Qd5 {[%clk 0:00:14.7]} 49...
Bh6 {[%clk 0:00:01.7]} 50. Qd4+ {[%clk 0:00:14.7]} 50... Kf8 {[%clk 0:00:01.6]}
51. Qg4 {[%clk 0:00:14]} 51... Bg7 {[%clk 0:00:01.6]} 52. Qf5+ {[%clk
0:00:14.2]} 52... Ke8 {[%clk 0:00:01.7]} 53. Bc6+ {[%clk 0:00:14]} 53... Kd8
{[%clk 0:00:01.7]} 54. Qd5+ {[%clk 0:00:13.8]} 54... Kc7 {[%clk 0:00:01.8]} 55.
Bb5 {[%clk 0:00:12.8]} 55... Re2+ {[%clk 0:00:01.4]} 56. Bxe2 {[%clk 0:00:12.5]}
1-0

[Event "Late-Titled-Tuesday-Blitz-February-20-2024"]
[Site "Chess.com"]
[Date "2024.02.20"]
[Round "4"]
[White "a-z30"]
[Black "midedu"]
[Result "1/2-1/2"]
[WhiteElo "2397"]
[BlackElo "2007"]
[TimeControl "180+1"]
[EndTime "14:39:34 PST"]
[Termination "Game drawn - insufficient material"]

1. d3 {[%clk 0:03:00.9]} 1... Nf6 {[%clk 0:02:54.2]} 2. Nf3 {[%clk 0:03:01.8]}
2... b6 {[%clk 0:02:53.5]} 3. g3 {[%clk 0:03:02.4]} 3... Bb7 {[%clk 0:02:53.9]}
4. Bg2 {[%clk 0:03:03]} 4... e6 {[%clk 0:02:54.6]} 5. O-O {[%clk 0:03:03.3]}
5... Be7 {[%clk 0:02:55.2]} 6. e4 {[%clk 0:03:03.6]} 6... O-O {[%clk 0:02:55.8]}
7. c4 {[%clk 0:03:02.4]} 7... d6 {[%clk 0:02:55.8]} 8. Nc3 {[%clk 0:03:01.8]}
8... Nbd7 {[%clk 0:02:56.4]} 9. Re1 {[%clk 0:03:01.5]} 9... a6 {[%clk 0:02:57]}
10. d4 {[%clk 0:03:00.2]} 10... c5 {[%clk 0:02:53.9]} 11. d5 {[%clk 0:02:59.4]}
11... e5 {[%clk 0:02:53.9]} 12. a4 {[%clk 0:02:33.5]} 12... Ne8 {[%clk
0:02:51.1]} 13. Be3 {[%clk 0:02:26.7]} 13... Bf6 {[%clk 0:02:43.9]} 14. h4
{[%clk 0:02:24.3]} 14... Nc7 {[%clk 0:02:33.5]} 15. Nh2 {[%clk 0:02:23.4]} 15...
Bc8 {[%clk 0:02:25.1]} 16. Ng4 {[%clk 0:02:22.6]} 16... Be7 {[%clk 0:02:25.1]}
17. Qd2 {[%clk 0:02:02.6]} 17... b5 {[%clk 0:02:14.9]} 18. axb5 {[%clk 0:02:01]}
18... Rb8 {[%clk 0:02:14]} 19. Bf1 {[%clk 0:01:45.4]} 19... axb5 {[%clk
0:02:06.3]} 20. cxb5 {[%clk 0:01:46.3]} 20... Nb6 {[%clk 0:01:59.1]} 21. Nh2
{[%clk 0:01:39.7]} 21... f5 {[%clk 0:01:58.9]} 22. exf5 {[%clk 0:01:21.8]} 22...
Bxf5 {[%clk 0:01:58]} 23. Ra7 {[%clk 0:01:18.9]} 23... Rf7 {[%clk 0:01:48.1]}
24. Bd3 {[%clk 0:01:13.2]} 24... g6 {[%clk 0:01:38.7]} 25. Bxf5 {[%clk
0:01:07.6]} 25... gxf5 {[%clk 0:01:38.4]} 26. Bg5 {[%clk 0:01:06.7]} 26... Bxg5
{[%clk 0:01:31.1]} 27. Qxg5+ {[%clk 0:01:01.4]} 27... Qxg5 {[%clk 0:01:29.7]}
28. hxg5 {[%clk 0:01:02.3]} 28... Ncxd5 {[%clk 0:01:20.5]} 29. Rea1 {[%clk
0:00:36.4]} 29... Nc7 {[%clk 0:00:50.2]} 30. Nf3 {[%clk 0:00:33.3]} 30... Kg7
{[%clk 0:00:43.8]} 31. Nh4 {[%clk 0:00:30.2]} 31... f4 {[%clk 0:00:20.8]} 32.
gxf4 {[%clk 0:00:27.4]} 32... exf4 {[%clk 0:00:20.9]} 33. Ne4 {[%clk 0:00:20.7]}
33... Nxb5 {[%clk 0:00:18]} 34. Nf5+ {[%clk 0:00:19.7]} 34... Kg6 {[%clk
0:00:14.4]} 35. Rxf7 {[%clk 0:00:20.6]} 35... Kxf7 {[%clk 0:00:13.9]} 36. Nfxd6+
{[%clk 0:00:21.5]} 36... Nxd6 {[%clk 0:00:13.8]} 37. Nxd6+ {[%clk 0:00:22.4]}
37... Kg6 {[%clk 0:00:13.3]} 38. Ne4 {[%clk 0:00:16.9]} 38... c4 {[%clk
0:00:12.2]} 39. Ra6 {[%clk 0:00:15.3]} 39... Kf5 {[%clk 0:00:11.3]} 40. Nd6+
{[%clk 0:00:13.4]} 40... Kxg5 {[%clk 0:00:10.7]} 41. Kg2 {[%clk 0:00:13.6]}
41... f3+ {[%clk 0:00:07.1]} 42. Kxf3 {[%clk 0:00:13]} 42... h5 {[%clk
0:00:07.5]} 43. Ra5+ {[%clk 0:00:10.2]} 43... Kg6 {[%clk 0:00:06.9]} 44. Rb5
{[%clk 0:00:08.9]} 44... Nd7 {[%clk 0:00:06.5]} 45. Rxb8 {[%clk 0:00:03.5]}
45... Nxb8 {[%clk 0:00:07.1]} 46. Nxc4 {[%clk 0:00:02.9]} 46... Nc6 {[%clk
0:00:07.1]} 47. Kg3 {[%clk 0:00:03.8]} 47... Kg5 {[%clk 0:00:06.8]} 48. Nd2
{[%clk 0:00:04]} 48... h4+ {[%clk 0:00:06.8]} 49. Kh3 {[%clk 0:00:03.7]} 49...
Kh5 {[%clk 0:00:06.3]} 50. Kg2 {[%clk 0:00:03.9]} 50... Nb4 {[%clk 0:00:05.7]}
51. Nf3 {[%clk 0:00:04.8]} 51... Kg4 {[%clk 0:00:05.9]} 52. Ne5+ {[%clk
0:00:02.8]} 52... Kf4 {[%clk 0:00:05.6]} 53. Nc4 {[%clk 0:00:03.5]} 53... Kg4
{[%clk 0:00:04.7]} 54. f3+ {[%clk 0:00:03.5]} 54... Kf4 {[%clk 0:00:04.7]} 55.
Nd2 {[%clk 0:00:03.5]} 55... Nd3 {[%clk 0:00:03.7]} 56. Kh3 {[%clk 0:00:03.5]}
56... Nxb2 {[%clk 0:00:03]} 57. Kxh4 {[%clk 0:00:03.8]} 57... Nd3 {[%clk
0:00:02.9]} 58. Kh3 {[%clk 0:00:04.2]} 58... Ne5 {[%clk 0:00:02.7]} 59. Kg2
{[%clk 0:00:04.5]} 59... Nxf3 {[%clk 0:00:01.2]} 1/2-1/2